bitfinex/quotes_SOLUSD_20251124
["timestamp","ask_amount","ask_price","bid_price","bid_amount"]
[1764003697631,7.71415792,134.2,134.14,9.78882769]
[1764003697959,0.7,134.19,134.14,17.50298561]
[1764003698125,0.7,134.19,134.14,67.50298561]
[1764003698327,24.02302192,134.23,134.16,15.16794444]
[1764003698521,0.7,134.21,134.16,37.12241074]
[1764003698753,8.41415792,134.21,134.16,29.40825282]
[1764003698962,8.41415792,134.21,134.16,10.77378652]
[1764003699260,0.7,134.2,134.16,10.77378652]
[1764003700262,0.7,134.2,134.16,29.40825282]
[1764003701252,0.7,134.2,134.16,3.32]
[1764003701832,0.7,134.2,134.16,10.77365296]
[1764003703362,8.41415792,134.2,134.16,3.32]
[1764003703578,7.71415792,134.18,134.14,7.45464232]
[1764003703749,7.71415792,134.17,134.14,7.45464232]
[1764003704138,0.7,134.16,134.14,7.45464232]
[1764003704665,0.7,134.16,134.13,27.08416996]
[1764003706554,0.7,134.2,134.14,9.93098926]
[1764003706760,0.7,134.19,134.15,7.71415792]
[1764003707067,0.7,134.19,134.14,17.64514718]
[1764003707370,7.71415792,134.15,134.1,16.308864]
[1764003707565,0.7,134.19,134.1,16.308864]
[1764003707864,7.71415792,134.14,134.09,17.24627553]
[1764003708074,7.71415792,134.13,134.09,7.45744784]
[1764003708439,0.7,134.12,134.09,7.45744784]
[1764003709168,0.7,134.12,134.08,3.32]
[1764003709465,0.7,134.12,134.06,10.97908638]
[1764003709466,7.71415792,134.11,134.06,10.97908638]
[1764003709658,8.41415792,134.12,134.06,27.28795038]
[1764003709858,0.7,134.11,134.06,27.28795038]
[1764003710040,8.41415792,134.11,134.06,27.28795038]
[1764003710240,0.7,134.11,134.07,17.50298561]
[1764003710762,0.7,134.1,134.06,10.97908638]
[1764003710965,8.41415792,134.1,134.06,3.52]
[1764003711173,7.71415792,134.09,134.06,0.2]
[1764003711466,8.41415792,134.09,134.06,0.2]
[1764003711642,0.7,134.08,134.06,0.2]
[1764003712361,8.41415792,134.08,134.06,0.2]
[1764003712565,7.71415792,134.07,134.06,0.2]
[1764003712746,0.69,134.07,134.06,0.2]
[1764003713072,8.40415792,134.07,134.06,0.2]
[1764003713240,0.69,134.07,134.06,0.2]
[1764003713442,0.69,134.09,134.06,7.65934656]
[1764003713755,7.71415792,134.07,134.06,0.2]
[1764003714159,8.40415792,134.07,134.06,0.2]
[1764003716890,7.71415792,134.03,134.01,0.2]
[1764003717172,7.71415792,134.03,134.01,7.66209945]
[1764003717362,8.40415792,134.03,134.01,0.2]
[1764003717752,0.69,134.03,134.01,7.66210013]
[1764003717953,8.40415792,134.06,134.01,7.66210013]
[1764003718366,16.308864,134.07,134.01,7.66210013]
[1764003718367,8.40415792,134.05,134.01,7.66210013]
[1764003718853,0.69,134.04,134.01,7.66210013]
[1764003719563,7.71415792,134.06,134.02,0.21]
[1764003719564,0.69,134.06,134.02,0.21]
[1764003719769,0.69,134.08,134.02,7.92415792]
[1764003719984,0.69,134.07,134.02,7.92415792]
[1764003720347,26.09769169,134.12,134.03,7.92415792]
[1764003720348,0.69,134.09,134.03,7.92415792]
[1764003720548,8.40415792,134.08,134.02,7.71415792]
[1764003720747,7.71415792,134.07,134.01,47.49257153]
[1764003720944,7.71415792,134.06,134.01,29.63742435]
[1764003721144,8.40415792,134.06,134.01,29.63742435]
[1764003721344,0.69,134.05,134.01,29.63742435]
[1764003722047,8.40415792,134.07,134.01,37.56158227]
[1764003722248,7.71415792,134.07,134.01,37.56158227]
[1764003722492,8.40415792,134.07,134.01,37.56158227]
[1764003722676,0.69,134.09,134.04,9.93098926]
[1764003722849,0.69,134.09,134.04,20.96514718]
[1764003723053,8.40415792,134.09,134.04,3.32]
[1764003723256,7.71415792,134.08,134.05,7.45990302]
[1764003723471,0.69,134.08,134.05,7.45990302]
[1764003723674,0.69,134.07,134.04,10.78030623]
[1764003723847,8.40415792,134.07,134.02,7.46117461]
[1764003724050,7.71415792,134.05,134.01,0.2]
[1764003724253,0.69,134.04,134.01,7.66208476]
[1764003724468,7.71415792,134.05,134.01,7.66208476]
[1764003724469,0.69,134.05,134.01,7.66208476]
[1764003724788,0.69,134.05,134.01,15.37624268]
[1764003724965,0.69,134.05,134.01,7.66208476]
[1764003725808,8.40415792,134.05,134.01,0.2]
[1764003726094,7.71415792,134.04,134.01,0.2]
[1764003726298,8.40415792,134.04,134.01,7.66199011]
[1764003726471,0.69,134.03,134.01,7.66199011]
[1764003726673,0.69,134.03,134.01,0.2]
[1764003726674,8.40415792,134.03,134.01,0.2]
[1764003726991,0.69,134.03,134.01,0.2]
[1764003727183,0.69,134.03,134.01,7.66212444]
[1764003727801,0.69,134.03,134.01,7.66206301]
[1764003728169,0.69,134.03,134.01,0.2]
[1764003728360,8.40415792,134.03,134.01,0.2]
[1764003728575,7.71415792,134.02,134.01,0.2]
[1764003728773,8.40415792,134.02,134.01,0.2]
[1764003730093,0.69,134.02,134.01,0.2]
[1764003730390,0.69,134.04,134.01,7.66212969]
[1764003730589,0.69,134.03,134.01,7.66212969]
[1764003731405,0.69,134.03,134.01,0.2]
[1764003731693,8.40415792,134.03,134.01,0.2]
[1764003732088,0.69,134.02,134.01,0.2]
[1764003732875,8.40415792,134.02,134.01,0.2]
[1764003733067,0.69,134.02,134.01,0.2]
[1764003733268,8.40415792,134.02,134.01,0.2]
[1764003733494,0.69,134.02,134.01,0.2]
[1764003734499,8.40415792,134.04,134.01,0.2]
[1764003734684,0.69,134.04,134.01,0.2]
[1764003734886,0.69,134.04,134.01,7.6620631]
[1764003735087,7.71415792,134.06,134.01,7.6620631]
[1764003735299,8.40415792,134.05,134.01,7.6620631]
[1764003735795,0.69,134.08,134.02,7.92415792]
[1764003736000,0.69,134.07,134.02,7.92415792]
[1764003736601,7.71415792,134.04,134.01,0.2]
[1764003736772,0.69,134.07,134.01,0.2]
[1764003736773,7.71415792,134.03,134.01,0.2]
[1764003736977,16.308864,134.06,134.01,0.2]
[1764003736978,7.71415792,134.04,134.01,0.2]
[1764003737311,0.69,134.03,134.01,0.2]
[1764003740405,16.308864,134.06,134.01,0.2]
[1764003740406,0.69,134.06,134.01,7.87209089]
[1764003740617,7.71415792,134.09,134.03,7.71415792]
[1764003740781,0.69,134.08,134.03,7.71415792]
[1764003740979,8.40415792,134.08,134.03,7.71415792]
[1764003741180,0.69,134.07,134.03,7.71415792]
[1764003741501,7.71415792,134.08,134.03,7.71415792]
[1764003741502,0.69,134.08,134.03,7.92415792]
[1764003741707,0.69,134.08,134.03,11.24415792]
[1764003742308,0.69,134.08,134.03,19.628864]
[1764003742309,7.71415792,134.07,134.03,19.628864]
[1764003742481,7.71415792,134.07,134.03,27.08979426]
[1764003742674,12.11436888,134.08,134.03,27.08979426]
[1764003742876,0.72,134.07,134.03,27.08979426]
[1764003743105,0.72,134.07,134.03,19.628864]
[1764003743608,0.72,134.07,134.03,27.08976096]
[1764003745598,12.83436888,134.07,134.03,27.08976096]
[1764003746099,0.72,134.06,134.03,27.08976096]
[1764003746707,0.72,134.09,134.05,12.11436888]
[1764003746915,0.72,134.11,134.06,15.43436888]
[1764003747079,0.72,134.11,134.07,12.11436888]
[1764003747280,12.83436888,134.11,134.06,3.32]
[1764003747500,12.83436888,134.11,134.06,3.53]
[1764003747689,0.72,134.1,134.06,3.53]
[1764003747899,0.72,134.1,134.06,3.32]
[1764003748098,0.72,134.1,134.07,7.45879018]
[1764003748716,12.11436888,134.09,134.04,3.32]
[1764003748883,12.11436888,134.08,134.04,10.78045956]
[1764003749390,12.11436888,134.06,134.02,7.4611703]
[1764003749696,0.72,134.07,134.01,9.98882769]
[1764003749697,12.11436888,134.04,134.01,0.2]
[1764003749899,12.11436888,134.03,134.01,0.2]
[1764003750201,0.72,134.03,134.01,0.2]
[1764003750578,12.11436888,134.05,134.01,7.66204533]
[1764003750802,0.72,134.05,134.01,7.66204533]
[1764003752814,0.72,134.05,134.01,19.77641421]
[1764003752992,0.72,134.05,134.01,23.09641421]
[1764003753311,0.72,134.08,134.03,12.11436888]
[1764003753510,12.11436888,134.1,134.04,15.43436888]
[1764003753722,0.72,134.1,134.06,12.11436888]
[1764003754094,0.72,134.1,134.05,21.90319657]
[1764003754299,0.72,134.1,134.06,7.45934656]
[1764003754611,12.83436888,134.1,134.05,9.78882769]
[1764003754996,12.83436888,134.13,134.08,28.42323288]
[1764003755207,0.72,134.12,134.08,28.42323288]
[1764003755406,0.72,134.12,134.08,16.308864]
[1764003755716,12.11436888,134.11,134.08,16.308864]
[1764003756003,12.11436888,134.1,134.08,16.308864]
[1764003756397,0.72,134.09,134.08,16.308864]
[1764003756984,12.83436888,134.12,134.08,16.308864]
[1764003757177,12.11436888,134.12,134.08,23.7670671]
[1764003757502,0.72,134.11,134.08,23.7670671]
[1764003759109,12.83436888,134.11,134.08,23.7670671]
[1764003759489,12.83436888,134.1,134.06,3.32]
[1764003759810,0.72,134.1,134.07,28.42323288]
[1764003760010,0.72,134.1,134.07,16.308864]
[1764003760314,0.72,134.1,134.07,28.42323288]
[1764003760610,12.83436888,134.12,134.08,7.45823389]
[1764003760906,0.72,134.11,134.08,7.45823389]
[1764003764223,12.83436888,134.1,134.07,16.308864]
[1764003764431,12.83436888,134.11,134.07,23.76763935]
[1764003764727,0.72,134.1,134.07,23.76763935]
[1764003765106,0.72,134.1,134.07,35.88200823]
[1764003765414,0.72,134.1,134.07,23.76763935]
[1764003765807,0.72,134.1,134.07,16.308864]
[1764003766328,12.83436888,134.1,134.07,16.308864]
[1764003766518,0.72,134.1,134.07,23.76760654]
[1764003767230,0.72,134.1,134.07,16.308864]
[1764003767530,12.83436888,134.1,134.07,16.308864]
[1764003768130,3.32,134.14,134.07,23.76751822]
[1764003768425,0.69,134.13,134.07,54.52886256]
[1764003768634,12.11436888,134.11,134.07,23.76751822]
[1764003768927,0.69,134.11,134.07,23.76751822]
[1764003769235,0.69,134.1,134.07,23.76751822]
[1764003769416,0.69,134.1,134.07,42.41449368]
[1764003769823,0.69,134.12,134.08,12.32436888]
[1764003770025,12.11436888,134.14,134.09,12.11436888]
[1764003770240,12.80436888,134.14,134.09,12.11436888]
[1764003770420,0.69,134.13,134.09,12.11436888]
[1764003771427,0.69,134.13,134.1,7.45712155]
[1764003772421,12.80436888,134.13,134.1,7.45712155]
[1764003772617,12.80436888,134.13,134.09,7.4574798]
[1764003772943,0.65,134.12,134.09,7.4574798]
[1764003773314,0.65,134.12,134.08,17.2468217]
[1764003773534,12.76436888,134.12,134.08,20.5668217]
[1764003774036,0.65,134.11,134.08,20.5668217]
[1764003774836,0.65,134.11,134.08,32.68119058]
[1764003775344,12.76436888,134.11,134.08,3.32]
[1764003775544,0.65,134.11,134.09,16.308864]
[1764003775716,0.65,134.11,134.09,23.7665064]
[1764003775916,12.76436888,134.13,134.09,23.7665064]
[1764003776238,0.65,134.15,134.09,36.09087528]
[1764003776536,12.11436888,134.14,134.09,35.88087528]
[1764003776734,12.11436888,134.14,134.09,54.52506947]
[1764003776921,0.65,134.13,134.09,54.73506947]
[1764003777820,12.76436888,134.13,134.09,16.308864]
[1764003778125,12.76436888,134.13,134.09,23.76639822]
[1764003778332,0.65,134.12,134.09,16.308864]
[1764003778534,12.76436888,134.12,134.09,23.76644983]
[1764003778917,0.65,134.11,134.09,23.76644983]
[1764003780542,12.11436888,134.1,134.06,9.78882769]
[1764003780714,12.11436888,134.1,134.06,17.24811561]
[1764003780916,12.11436888,134.07,134.02,17.25001993]
[1764003781119,12.11436888,134.06,134.02,20.57001993]
[1764003781344,12.11436888,134.06,134.02,3.32]
[1764003781517,12.11436888,134.04,134.01,0.2]
[1764003781717,12.11436888,134.02,134.01,0.2]
[1764003781927,0.65,134.03,134.01,0.2]
[1764003782745,12.11436888,134.02,134.01,0.2]
[1764003782948,16.308864,133.99,133.95,0.1]
[1764003783257,12.11436888,133.96,133.95,0.1]
[1764003783615,12.76436888,133.96,133.95,0.1]
[1764003784824,16.308864,133.98,133.95,0.1]
[1764003785148,12.11436888,133.98,133.95,0.1]
[1764003785313,16.45102557,134.01,133.95,0.1]
[1764003785314,12.76436888,134.0,133.96,12.11436888]
[1764003785745,12.76436888,134.0,133.95,12.21436888]
[1764003785919,12.11436888,133.98,133.95,0.1]
[1764003786118,0.65,133.97,133.95,0.1]
[1764003786314,12.76436888,133.98,133.95,7.56537575]
[1764003786630,12.11436888,133.99,133.95,19.67974463]
[1764003786833,12.11436888,133.99,133.95,7.56537575]
[1764003787029,12.11436888,133.96,133.95,0.1]
[1764003787229,12.76436888,133.96,133.95,0.1]
[1764003793445,0.65,134.01,133.95,12.82436888]
[1764003793635,12.11436888,134.1,133.95,12.82436888]
[1764003793636,12.11436888,134.02,133.97,12.11436888]
[1764003793834,12.11436888,133.99,133.95,16.408864]
[1764003794060,12.11436888,133.99,133.95,28.52323288]
[1764003794356,19.348864,134.03,133.95,36.59831977]
[1764003794357,12.11436888,134.0,133.95,36.59831977]
[1764003794957,12.11436888,133.97,133.95,0.1]
[1764003797158,12.76436888,133.96,133.95,0.1]
[1764003797449,12.11436888,133.96,133.95,0.1]
[1764003797653,12.76436888,133.96,133.95,0.1]
[1764003799225,0.65,133.99,133.95,0.1]
[1764003799540,12.76436888,133.98,133.95,0.1]
[1764003799864,12.11436888,133.96,133.95,0.1]
[1764003800049,12.76436888,133.96,133.95,0.1]
[1764003800247,12.11436888,133.97,133.95,0.1]
[1764003800749,12.11436888,133.96,133.95,0.1]
[1764003800943,12.76436888,133.96,133.95,0.1]
[1764003802069,12.76436888,134.01,133.96,9.78882769]
[1764003802241,12.11436888,134.0,133.96,9.78882769]
[1764003802441,3.32,134.05,133.95,7.56520438]
[1764003802442,12.11436888,133.98,133.95,7.56520438]
[1764003802651,7.74150824,133.98,133.95,0.1]
[1764003802853,7.74150824,133.98,133.95,7.56537763]
[1764003803143,8.39150824,133.99,133.95,8.17537763]
[1764003803944,8.39150824,133.99,133.95,7.56537763]
[1764003804464,7.74150824,133.99,133.96,0.61]
[1764003804764,4.01,134.01,133.96,18.14033593]
[1764003804765,7.74150824,134.0,133.96,18.14033593]
[1764003805365,7.74150824,134.0,133.96,10.39882769]
[1764003805540,8.43150824,134.0,133.96,10.39882769]
[1764003805766,8.43150824,134.0,133.95,33.97056634]
[1764003805946,8.43150824,134.0,133.95,34.58056634]
[1764003806164,8.43150824,134.0,133.96,0.61]
[1764003806372,0.69,134.05,133.98,33.86481021]
[1764003806567,0.69,134.04,133.98,26.73330197]
[1764003806745,7.74150824,134.03,133.98,34.47481021]
[1764003807248,7.74150824,134.03,133.98,15.8153088]
[1764003807441,0.69,134.02,133.98,8.07380056]
[1764003807671,8.43150824,134.03,133.98,15.8153088]
[1764003808376,8.43150824,134.02,133.98,7.46380056]
[1764003808567,7.74150824,134.01,133.98,7.46380056]
[1764003808945,8.43150824,134.01,133.96,26.70769169]
[1764003809163,8.43150824,134.01,133.96,37.15919993]
[1764003809667,8.43150824,134.01,133.97,0.61]
[1764003810468,8.43150824,134.01,133.98,7.46380056]
[1764003810973,3.32,134.05,133.96,48.07997893]
[1764003810974,7.74150824,134.0,133.96,3.32]
[1764003811155,8.43150824,134.0,133.96,11.06150824]
[1764003811355,8.43150824,133.99,133.95,24.15037224]
[1764003811555,0.69,133.99,133.95,34.93559693]
[1764003811770,8.43150824,133.99,133.95,35.54559693]
[1764003812440,7.74150824,133.97,133.95,0.1]
[1764003812841,8.43150824,133.97,133.95,0.1]
[1764003813982,8.43150824,133.96,133.95,0.1]
[1764003814853,7.74150824,133.96,133.95,0.1]
[1764003815044,8.43150824,133.96,133.95,0.1]
[1764003815247,7.74150824,133.96,133.95,0.1]
[1764003815451,0.69,133.99,133.95,0.1]
[1764003815677,7.74150824,133.97,133.95,0.1]
[1764003815873,7.74150824,133.96,133.95,0.1]
[1764003816074,8.43150824,133.96,133.95,0.1]
[1764003817050,8.43150824,133.96,133.93,0.0805]
[1764003817361,7.74150824,133.94,133.93,0.0805]
[1764003817758,8.43150824,133.94,133.93,0.0805]
[1764003818757,0.69,133.94,133.93,0.0805]
[1764003818963,8.43150824,133.94,133.93,0.0805]
[1764003820181,0.14216157,133.98,133.93,0.0805]
[1764003820182,0.69,133.98,133.93,0.0805]
[1764003820378,7.74150824,133.98,133.93,8.43200824]
[1764003820681,8.43150824,133.98,133.93,15.89810501]
[1764003820894,8.43150824,133.98,133.94,0.61]
[1764003821549,7.74150824,133.97,133.93,7.54659677]
[1764003821751,0.69,133.97,133.93,0.0805]
[1764003821974,7.74150824,134.0,133.93,0.0805]
[1764003822181,7.74150824,133.95,133.93,0.0805]
[1764003823076,7.74150824,133.96,133.93,0.0805]
[1764003823287,7.74150824,133.95,133.93,0.0805]
[1764003824882,7.88366981,134.0,133.93,0.0805]
[1764003824883,7.74150824,133.94,133.93,0.0805]
[1764003825050,8.43150824,133.94,133.93,0.0805]
[1764003828381,0.67,133.93,133.9,0.1]
[1764003828690,7.74150824,133.91,133.9,0.1]
[1764003829059,3.99,133.91,133.9,0.1]
[1764003829256,8.41150824,133.91,133.9,0.1]
[1764003829777,7.74150824,133.92,133.9,0.1]
[1764003830873,7.74150824,133.92,133.9,0.79]
[1764003831777,7.74150824,133.93,133.9,0.79]
[1764003832092,7.74150824,133.94,133.9,0.79]
[1764003832298,7.74150824,133.95,133.91,7.74150824]
[1764003832658,7.74150824,133.95,133.92,0.72]
[1764003833558,7.74150824,133.95,133.92,8.18708676]
[1764003834005,7.74150824,133.95,133.92,0.72]
[1764003834172,3.34,133.96,133.92,0.72]
[1764003834375,7.74150824,133.95,133.92,0.72]
[1764003834895,7.74150824,133.95,133.91,7.74150824]
[1764003835098,7.74150824,133.95,133.91,0.72]
[1764003835259,7.74150824,133.95,133.91,7.4676937]
[1764003835462,7.74150824,133.95,133.92,0.72]
[1764003835710,11.08150824,133.96,133.92,0.72]
[1764003835993,7.74150824,133.97,133.92,8.46150824]
[1764003836502,7.74150824,133.97,133.93,0.72]
[1764003836870,0.69,133.97,133.93,0.72]
[1764003837074,8.43150824,133.97,133.93,8.18658675]
[1764003837273,7.74150824,133.99,133.95,7.74150824]
[1764003837504,8.43150824,133.99,133.95,7.74150824]
[1764003837704,8.43150824,133.99,133.95,8.46150824]
[1764003837900,7.74150824,133.99,133.95,7.74150824]
[1764003838078,7.74150824,133.99,133.96,0.72]
[1764003838277,8.43150824,133.99,133.95,0.72]
[1764003838973,8.43150824,133.99,133.95,8.18538942]
[1764003839175,7.74150824,134.0,133.95,15.92689766]
[1764003839369,7.74150824,134.0,133.96,8.46150824]
[1764003839811,8.43150824,134.01,133.96,8.46150824]
[1764003840109,8.43150824,134.01,133.97,0.72]
[1764003840276,8.43150824,134.0,133.95,7.74150824]
[1764003840481,7.74150824,133.98,133.94,15.20740282]
[1764003840807,16.308864,134.09,133.97,7.74150824]
[1764003840974,7.74150824,134.05,134.0,7.74150824]
[1764003841178,11.75150824,134.07,134.02,7.74150824]
[1764003841404,3.32,134.07,134.03,7.74150824]
[1764003841616,3.32,134.07,134.04,0.72]
[1764003841911,8.43150824,134.09,134.05,7.74150824]
[1764003842075,7.74150824,134.1,134.05,7.74150824]
[1764003842278,7.74150824,134.1,134.06,8.17928608]
[1764003842478,0.1,134.11,134.08,7.74150824]
[1764003842677,0.1,134.11,134.1,7.74150824]
[1764003842880,0.1,134.11,134.1,16.308864]
[1764003843212,0.1,134.11,134.08,24.05037224]
[1764003843376,0.1,134.11,134.08,24.77037224]
[1764003843584,0.1,134.11,134.08,17.028864]
[1764003843787,0.1,134.11,134.09,0.72]
[1764003844808,8.53150824,134.11,134.06,25.70953176]
[1764003845108,8.53150824,134.11,134.07,0.72]
[1764003845287,0.1,134.11,134.08,7.74150824]
[1764003845496,0.1,134.11,134.08,24.05037224]
[1764003845692,0.1,134.11,134.08,24.77037224]
[1764003845892,0.1,134.11,134.09,8.46150824]
[1764003846095,0.1,134.11,134.1,7.74150824]
[1764003846312,0.1,134.11,134.1,8.46150824]
[1764003846612,0.1,134.11,134.1,15.91862979]
[1764003847323,0.1,134.13,134.12,26.09769169]
[1764003847507,7.74150824,134.21,134.17,7.74150824]
[1764003847712,8.43150824,134.22,134.17,7.74150824]
[1764003848016,8.43150824,134.22,134.17,8.46150824]
[1764003848197,7.74150824,134.22,134.17,8.46150824]
[1764003848383,0.69,134.21,134.17,15.91469904]
[1764003848898,7.74150824,134.22,134.17,8.46150824]
[1764003849096,8.43150824,134.22,134.17,8.46150824]
[1764003849295,7.74150824,134.23,134.18,8.46150824]
[1764003849510,1e-08,134.24,134.2,7.74150824]
[1764003850008,1e-08,134.24,134.2,8.46150824]
[1764003850382,8.43150825,134.24,134.2,7.74150824]
[1764003850811,8.43150825,134.24,134.19,15.19341299]
[1764003851011,8.43150825,134.24,134.19,15.91341299]
[1764003852708,8.43150824,134.23,134.19,15.91341299]
[1764003852881,8.43150824,134.23,134.18,36.87023147]
[1764003853079,1e-08,134.24,134.18,44.61173971]
[1764003853298,1e-08,134.24,134.23,7.74150824]
[1764003853509,1e-08,134.24,134.23,17.53033593]
[1764003853682,1e-08,134.24,134.23,18.25033593]
[1764003853884,1e-08,134.24,134.21,3.32]
[1764003854081,1e-08,134.24,134.22,7.74150824]
[1764003854402,1e-08,134.24,134.22,15.19176079]
[1764003854908,1e-08,134.24,134.21,34.26860321]
[1764003855100,1e-08,134.24,134.21,16.308864]
[1764003855296,1e-08,134.24,134.23,7.74150824]
[1764003855497,1e-08,134.24,134.23,17.53033593]
[1764003855838,1e-08,134.24,134.23,18.25033593]
[1764003856914,1e-08,134.24,134.23,25.70023535]
[1764003857724,1e-08,134.24,134.23,18.25033593]
[1764003858019,1e-08,134.24,134.23,83.58390516]
[1764003858184,1e-08,134.24,134.23,75.84239692]
[1764003859322,1e-08,134.24,134.23,25.84239692]
[1764003859622,1e-08,134.24,134.23,42.00909935]
[1764003859923,1e-08,134.24,134.23,42.03408929]
[1764003860226,1e-08,134.24,134.23,26.44522529]
[1764003860526,1e-08,134.24,134.23,42.89625086]
[1764003861632,1e-08,134.24,134.23,34.58418987]
[1764003862624,0.66000001,134.24,134.21,17.53033593]
[1764003862835,1e-08,134.24,134.21,33.83919993]
[1764003863015,0.66000001,134.24,134.21,7.74150824]
[1764003864219,1e-08,134.24,134.21,8.42150824]
[1764003864524,0.66000001,134.24,134.21,12.08152665]
[1764003865312,1e-08,134.24,134.22,12.08152665]
[1764003866016,0.66000001,134.24,134.21,12.08152665]
[1764003866622,0.66000001,134.24,134.2,15.40152665]
[1764003866840,12.74152666,134.24,134.2,15.40152665]
[1764003867145,0.66000001,134.24,134.2,22.85302856]
[1764003867306,0.66000001,134.24,134.2,23.53302856]
[1764003868011,0.66000001,134.24,134.2,22.85302856]
[1764003868342,0.66000001,134.24,134.2,16.08152665]
[1764003869204,0.66000001,134.24,134.2,23.53301689]
[1764003869629,1e-08,134.24,134.23,9.78882769]
[1764003869828,1e-08,134.24,134.23,79.55985326]
[1764003870034,1e-08,134.24,134.23,80.23985326]
[1764003870945,1e-08,134.25,134.24,0.14216157]
[1764003871147,1e-08,134.25,134.24,23.43745035]
[1764003871644,1e-08,134.25,134.24,30.8867948]
[1764003871823,1e-08,134.26,134.25,60.61098926]
[1764003872020,1e-08,134.26,134.25,76.01251591]
[1764003872234,1e-08,134.26,134.25,92.32137991]
[1764003873635,1e-08,134.26,134.25,99.77016948]
[1764003874451,1e-08,134.26,134.25,86.86648126]
[1764003874668,1e-08,134.26,134.25,49.62800791]
[1764003875031,1e-08,134.26,134.25,99.77016948]
[1764003875554,1e-08,134.26,134.25,99.62800791]
[1764003875760,1e-08,134.26,134.25,99.77016948]
[1764003876963,1e-08,134.26,134.25,99.62800791]
[1764003877340,1e-08,134.26,134.25,49.62800791]
[1764003877660,1e-08,134.26,134.25,49.77016948]
[1764003878231,1e-08,134.26,134.25,10.76878957]
[1764003878430,1e-08,134.26,134.25,22.85031622]
[1764003879246,1e-08,134.26,134.25,84.20618443]
[1764003880040,1e-08,134.26,134.25,34.20618443]
[1764003880552,1e-08,134.26,134.25,33.52618443]
[1764003880754,1e-08,134.26,134.25,34.20618443]
[1764003881152,0.66000001,134.26,134.25,3.32]
[1764003881364,1e-08,134.26,134.24,12.08152665]
[1764003881538,0.66000001,134.26,134.24,12.08152665]
[1764003881741,0.66000001,134.26,134.24,19.530756]
[1764003882036,0.66000001,134.26,134.23,31.71039065]
[1764003882257,0.66000001,134.26,134.23,15.40152665]
[1764003882440,0.66000001,134.26,134.23,3.32]
[1764003883265,0.66000001,134.26,134.23,22.85139176]
[1764003883451,0.66000001,134.26,134.23,15.40152665]
[1764003883760,0.66000001,134.26,134.23,22.85129792]
[1764003884945,0.66000001,134.26,134.24,12.08152665]
[1764003885943,0.66000001,134.26,134.24,7.44908428]
[1764003886144,0.66000001,134.26,134.24,12.08152665]
[1764003886965,0.66000001,134.26,134.23,15.40152665]
[1764003887144,0.66000001,134.26,134.23,3.32]
[1764003887342,0.66000001,134.26,134.23,15.40152665]
[1764003887559,12.74152666,134.26,134.23,3.32]
[1764003887761,0.66000001,134.26,134.22,21.87035434]
[1764003887946,0.71,134.25,134.22,9.78882769]
[1764003888368,0.71,134.25,134.22,21.87035434]
[1764003888555,0.71,134.25,134.22,29.32073706]
[1764003889377,12.08152665,134.23,134.13,7.45545366]
[1764003889664,10.49882769,134.25,134.12,6.55382938]
[1764003889665,12.08152665,134.16,134.12,17.97535603]
[1764003889965,16.308864,134.2,134.12,17.97535603]
[1764003889966,12.08152665,134.17,134.12,35.84634456]
[1764003890180,12.08152665,134.18,134.13,12.08152665]
[1764003890538,0.71,134.17,134.13,12.08152665]
[1764003892164,0.71,134.2,134.15,9.78882769]
[1764003892368,0.71,134.2,134.17,12.08152665]
[1764003895472,0.71,134.2,134.17,19.53469015]
[1764003897381,3.32,134.25,134.19,12.08152665]
[1764003897382,0.7,134.22,134.19,12.08152665]
[1764003897583,0.7,134.24,134.2,12.08152665]
[1764003898241,12.08152665,134.23,134.18,26.09769169]
[1764003898487,12.08152665,134.23,134.18,38.17921834]
[1764003898656,0.7,134.22,134.18,38.17921834]
[1764003899171,12.08152665,134.2,134.16,9.78882769]
[1764003899546,0.7,134.19,134.16,21.87035434]
[1764003899982,0.7,134.19,134.17,12.08152665]
[1764003900273,0.7,134.21,134.17,12.08152665]
[1764003900482,12.78152665,134.2,134.16,9.78882769]
[1764003900682,12.78152665,134.2,134.15,16.308864]
[1764003900683,12.08152665,134.19,134.15,9.78882769]